Workbook

Sheet Test Sheet
A1: 2022-1학기 수업 피드백(중간설문) 결과
A2: 과목명(수강생) 및 문항별 응답율
A3: 전 공 명 | C3: C4ISR체계공학 | D3: C4I시스템총론 | E3: IoT개론 | F3: IoT네트워크 | G3: IoT응용및서비스사례연구 | H3: 국방소프트웨어 | I3: 기계학습및데이터마이닝 | J3: 기계학습을위한데이터엔지니어링 | K3: 데이터베이스보안 | L3: 디지털포렌식 | M3: 무선네트워킹 | N3: 미래C4ISR발전론 | O3: 빅데이터분석 | P3: 응답 인원
A4: 담당교수 | C4: 김호근 교수 | D4: 김혁래 교수 | E4: 고영배 교수 | F4: 김기형 교수 | G4: 유승화 교수 | H4: 이장헌 교수 | I4: 손경아 교수 | J4: 최재영 교수 | K4: 김강석 교수 | L4: 손태식 교수 | M4: 최영준 교수 | N4: 김혁래 교수 | O4: 김진철 교수
A5: 수강인원 | C5: 12 | D5: 68 | E5: 63 | F5: 11 | G5: 47 | H5: 80 | I5: 43 | J5: 15 | K5: 19 | L5: 23 | M5: 38 | N5: 40 | O5: 54
A6: 응답인원 | C6: 5 | D6: 4 | E6: 15 | F6: 2 | G6: 4 | H6: 14 | I6: 8 | J6: 2 | K6: 3 | L6: 3 | M6: 3 | N6: 4 | O6: 7
A7: 응답률 | C7: =C6/C5*100 -> 41.66666667 | D7: 5.882352941 | E7: 23.80952381 | F7: 18.18181818 | G7: =G6/G5*100 -> 8.510638298 | H7: 17.5 | I7: 18.60465116 | J7: 13.33333333 | K7: 15.78947368 | L7: 13.04347826 | M7: 7.894736842 | N7: 10 | O7: 12.96296296
A8: 1.현재까지 수강한 경험을 통해 각 항목별로 개선되기를 바라는 것을 체크해 주세요.
A9: 1-1) 강의자료 | B9: 1) 더 자세하게 | C9: 0% (0명) | D9: 0% (0명) | E9: 13% (2명) | F9: 0% (0명) | G9: 0% (0명) | H9: 0% (0명) | I9: 25% (2명) | J9: 0% (0명) | K9: 0% (0명) | L9: 0% (0명) | M9: 33% (1명) | N9: 0% (0명) | O9: 0% (0명) | P9: 5 | Q9: 21 | R9: 17 | S9: 24 | T9: =Q9+R9+S9 -> 62
B10: 2) 만족한다 | C10: 100% (5명) | D10: 100% (4명) | E10: 80% (12명) | F10: 100% (2명) | G10: 100% (4명) | H10: 100% (14명) | I10: 75% (6명) | J10: 100% (2명) | K10: 100% (3명) | L10: 67% (2명) | M10: 67% (2명) | N10: 100% (4명) | O10: 100% (7명) | P10: 67 | Q10: 117 | R10: 81 | S10: 102 | T10: =Q10+R10+S10 -> 300
B11: 3) 더 다양하게 | C11: 0% (0명) | D11: 0% (0명) | E11: 7% (1명) | F11: 0% (0명) | G11: 0% (0명) | H11: 0% (0명) | I11: 0% (0명) | J11: 0% (0명) | K11: 0% (0명) | L11: 33% (1명) | M11: 0% (0명) | N11: 0% (0명) | O11: 0% (0명) | P11: 2 | Q11: 5 | R11: 2 | S11: 2 | T11: 9
A12: 1-2) 강의 동영상 | B12: 1) 더 이해하기 쉽게 | C12: 20% (1명) | D12: 0% (0명) | E12: 13% (2명) | F12: 0% (0명) | G12: 0% (0명) | H12: 7% (1명) | I12: 50% (4명) | J12: 0% (0명) | K12: 33% (1명) | L12: 0% (0명) | M12: 33% (1명) | N12: 0% (0명) | O12: 14% (1명) | P12: 11 | Q12: 25 | R12: 23 | S12: 29 | T12: 77
B13: 2) 만족한다 | C13: 80% (4명) | D13: 100% (4명) | E13: 80% (12명) | F13: 100% (2명) | G13: 75% (3명) | H13: 93% (13명) | I13: 50% (4명) | J13: 100% (2명) | K13: 67% (2명) | L13: 100% (3명) | M13: 67% (2명) | N13: 100% (4명) | O13: 86% (6명) | P13: 61 | Q13: 116 | R13: 76 | S13: 95 | T13: 287
B14: 3) 더 짧게 | C14: 0% (0명) | D14: 0% (0명) | E14: 7% (1명) | F14: 0% (0명) | G14: 25% (1명) | H14: 0% (0명) | I14: 0% (0명) | J14: 0% (0명) | K14: 0% (0명) | L14: 0% (0명) | M14: 0% (0명) | N14: 0% (0명) | O14: 0% (0명) | P14: 2 | Q14: 2 | R14: 1 | S14: 4 | T14: 7
A15: 1-3) 수업 진도 | B15: 1) 너무 느리다 | C15: 0% (0명) | D15: 0% (0명) | E15: 0% (0명) | F15: 0% (0명) | G15: 0% (0명) | H15: 0% (0명) | I15: 0% (0명) | J15: 0% (0명) | K15: 0% (0명) | L15: 0% (0명) | M15: 0% (0명) | N15: 0% (0명) | O15: 0% (0명) | P15: 0 | Q15: 1 | R15: 0 | S15: 0 | T15: 1
B16: 2) 적절하다 | C16: 100% (5명) | D16: 75% (3명) | E16: 100% (15명) | F16: 100% (2명) | G16: 100% (4명) | H16: 100% (14명) | I16: 88% (7명) | J16: 100% (2명) | K16: 67% (2명) | L16: 100% (3명) | M16: 100% (3명) | N16: 100% (4명) | O16: 100% (7명) | P16: 71 | Q16: 134 | R16: 95 | S16: 118 | T16: 347
B17: 3) 너무 빠르다 | C17: 0% (0명) | D17: 25% (1명) | E17: 0% (0명) | F17: 0% (0명) | G17: 0% (0명) | H17: 0% (0명) | I17: 12% (1명) | J17: 0% (0명) | K17: 33% (1명) | L17: 0% (0명) | M17: 0% (0명) | N17: 0% (0명) | O17: 0% (0명) | P17: 3 | Q17: 8 | R17: 5 | S17: 10 | T17: 23
A18: 1-4) 학습량 | B18: 1) 너무 적다 | C18: 0% (0명) | D18: 0% (0명) | E18: 0% (0명) | F18: 0% (0명) | G18: 0% (0명) | H18: 0% (0명) | I18: 0% (0명) | J18: 0% (0명) | K18: 0% (0명) | L18: 0% (0명) | M18: 0% (0명) | N18: 0% (0명) | O18: 0% (0명) | P18: 0 | Q18: 0 | R18: 1 | S18: 1 | T18: 2
B19: 2) 적절하다 | C19: 80% (4명) | D19: 100% (4명) | E19: 87% (13명) | F19: 100% (2명) | G19: 100% (4명) | H19: 100% (14명) | I19: 75% (6명) | J19: 100% (2명) | K19: 67% (2명) | L19: 100% (3명) | M19: 100% (3명) | N19: 100% (4명) | O19: 100% (7명) | P19: 68 | Q19: 128 | R19: 87 | S19: 114 | T19: 329
B20: 3) 너무 많다 | C20: 20% (1명) | D20: 0% (0명) | E20: 13% (2명) | F20: 0% (0명) | G20: 0% (0명) | H20: 0% (0명) | I20: 25% (2명) | J20: 0% (0명) | K20: 33% (1명) | L20: 0% (0명) | M20: 0% (0명) | N20: 0% (0명) | O20: 0% (0명) | P20: 6 | Q20: 15 | R20: 12 | S20: 13 | T20: 40
A21: 1-5) 학습 부담 | B21: 1) 너무 쉽다 | C21: 0% (0명) | D21: 0% (0명) | E21: 0% (0명) | F21: 0% (0명) | G21: 0% (0명) | H21: 0% (0명) | I21: 0% (0명) | J21: 0% (0명) | K21: 0% (0명) | L21: 0% (0명) | M21: 0% (0명) | N21: 0% (0명) | O21: 0% (0명) | P21: 0 | Q21: 2 | R21: 0 | S21: 1 | T21: 3
B22: 2) 적절하다 | C22: 80% (4명) | D22: 100% (4명) | E22: 93% (14명) | F22: 100% (2명) | G22: 100% (4명) | H22: 100% (14명) | I22: 50% (4명) | J22: 100% (2명) | K22: 67% (2명) | L22: 100% (3명) | M22: 100% (3명) | N22: 100% (4명) | O22: 100% (7명) | P22: 67 | Q22: 124 | R22: 82 | S22: 107 | T22: 313
B23: 3) 너무 어렵다 | C23: 20% (1명) | D23: 0% (0명) | E23: 7% (1명) | F23: 0% (0명) | G23: 0% (0명) | H23: 0% (0명) | I23: 50% (4명) | J23: 0% (0명) | K23: 33% (1명) | L23: 0% (0명) | M23: 0% (0명) | N23: 0% (0명) | O23: 0% (0명) | P23: 7 | Q23: 17 | R23: 18 | S23: 20 | T23: 55
A24: 2.당초 기대한 것에 비하여 현재까지 진행된 수업을 종합적으로 판단한 결과는? | T24: 0
A25: 1) 수업 진도에 맞추어 잘 수강하고 있다. | C25: 40% (2명) | D25: 100% (4명) | E25: 93% (14명) | F25: 100% (2명) | G25: 75% (3명) | H25: 100% (14명) | I25: 75% (6명) | J25: 100% (2명) | K25: 100% (3명) | L25: 67% (2명) | M25: 67% (2명) | N25: 100% (4명) | O25: 100% (7명) | P25: 65 | Q25: 128 | R25: 79 | S25: 108 | T25: 315
A26: 2) 내가 예상한 것과 크게 달랐다. 다른 이유는 무엇인가요? | C26: 0% (0명) | D26: 0% (0명) | E26: 0% (0명) | F26: 0% (0명) | G26: 25% (1명) | H26: 0% (0명) | I26: 12% (1명) | J26: 0% (0명) | K26: 0% (0명) | L26: 33% (1명) | M26: 33% (1명) | N26: 0% (0명) | O26: 0% (0명) | P26: 4 | Q26: 2 | R26: 5 | S26: 7 | T26: 14
A27: 3) 기대한 것보다 훨씬 만족한다. 만족한 이유는 무엇인가요? | C27: 40% (2명) | D27: 0% (0명) | E27: 7% (1명) | F27: 0% (0명) | G27: 0% (0명) | H27: 0% (0명) | I27: 0% (0명) | J27: 0% (0명) | K27: 0% (0명) | L27: 0% (0명) | M27: 0% (0명) | N27: 0% (0명) | O27: 0% (0명) | P27: 3 | Q27: 11 | R27: 8 | S27: 9 | T27: 28
A28: 4) 기타 의견(서술형) | C28: 20% (1명) | D28: 0% (0명) | E28: 0% (0명) | F28: 0% (0명) | G28: 0% (0명) | H28: 0% (0명) | I28: 12% (1명) | J28: 0% (0명) | K28: 0% (0명) | L28: 0% (0명) | M28: 0% (0명) | N28: 0% (0명) | O28: 0% (0명) | P28: 2 | Q28: 2 | R28: 8 | S28: 4 | T28: 14
A29: 3.이 수업의 장점이라고 생각되는 것을 체크해 주세요. | T29: 0
A30: 1) 교수자의 전문성과 풍부한 경험이 실감나는 수업 | C30: 60% (3명) | D30: 50% (2명) | E30: 20% (3명) | F30: 50% (1명) | G30: 0% (0명) | H30: 64% (9명) | I30: 62% (5명) | J30: 50% (1명) | K30: 33% (1명) | L30: 33% (1명) | M30: 67% (2명) | N30: 50% (2명) | O30: 29% (2명) | P30: 32 | Q30: 71 | R30: 46 | S30: 70 | T30: 187
A31: 2) 수업 내용이 알차고 충실하면서도 현실적이고 유용한 수업 | C31: 0% (0명) | D31: 25% (1명) | E31: 13% (2명) | F31: 0% (0명) | G31: 50% (2명) | H31: 14% (2명) | I31: 0% (0명) | J31: 50% (1명) | K31: 0% (0명) | L31: 67% (2명) | M31: 0% (0명) | N31: 50% (2명) | O31: 29% (2명) | P31: 14 | Q31: 28 | R31: 24 | S31: 16 | T31: 68
A32: 3) 교수자의 열의가 높고 학생과 함께 교감할 수 있는 수업 | C32: 40% (2명) | D32: 25% (1명) | E32: 53% (8명) | F32: 50% (1명) | G32: 25% (1명) | H32: 21% (3명) | I32: 12% (1명) | J32: 0% (0명) | K32: 67% (2명) | L32: 0% (0명) | M32: 33% (1명) | N32: 0% (0명) | O32: 0% (0명) | P32: 20 | Q32: 22 | R32: 15 | S32: 18 | T32: 55
A33: 4) 지루하지 않고 집중할 수 있도록 교수자의 수업 운영 기술이 돋보이는 수업 | C33: 0% (0명) | D33: 0% (0명) | E33: 0% (0명) | F33: 0% (0명) | G33: 0% (0명) | H33: 0% (0명) | I33: 0% (0명) | J33: 0% (0명) | K33: 0% (0명) | L33: 0% (0명) | M33: 0% (0명) | N33: 0% (0명) | O33: 14% (1명) | P33: 1 | Q33: 8 | R33: 6 | S33: 10 | T33: 24
A34: 5) 해당사항 없음 | C34: 0% (0명) | D34: 0% (0명) | E34: 7% (1명) | F34: 0% (0명) | G34: 25% (1명) | H34: 0% (0명) | I34: 25% (2명) | J34: 0% (0명) | K34: 0% (0명) | L34: 0% (0명) | M34: 0% (0명) | N34: 0% (0명) | O34: 29% (2명) | P34: 6 | Q34: 10 | R34: 5 | S34: 14 | T34: 29
A35: 6) 기타 의견(서술형) | C35: 0% (0명) | D35: 0% (0명) | E35: 7% (1명) | F35: 0% (0명) | G35: 0% (0명) | H35: 0% (0명) | I35: 0% (0명) | J35: 0% (0명) | K35: 0% (0명) | L35: 0% (0명) | M35: 0% (0명) | N35: 0% (0명) | O35: 0% (0명) | P35: 1 | Q35: 4 | R35: 4 | S35: 0 | T35: 8
A38: 2022-1학기 수업 피드백(중간설문) 결과
A39: 과목명(수강생) 및 문항별 응답율
A40: 전공명 | C40: 사이버전 | D40: 암호기술과응용 | E40: 연합C4I시스템 | F40: 운영체제 | G40: 인공지능 | H40: 인터넷프로토콜 | I40: 정보보호 | J40: 정보보호평가인증론 | K40: 정보체계사업관리론 | L40: 지능형정보검색 | M40: 지휘통제론 | N40: 첨단국방ICT융합론 | O40: 컴퓨터공학론 | P40: 응답 인원
A41: 교수명 | C41: 이장헌 교수 | D41: 예홍진 교수 | E41: 김호근 교수 | F41: 최경희 교수 | G41: 김민구 교수 | H41: 강경란 교수 | I41: 손태식 교수 | J41: 김학범 교수 | K41: 김화수 교수 | L41: 이석원 교수 | M41: 신병호 교수 | N41: 김화수 교수 | O41: 김동윤 교수
A42: 수강인원 | C42: 28 | D42: 31 | E42: 13 | F42: 15 | G42: 19 | H42: 58 | I42: 85 | J42: 34 | K42: 51 | L42: 20 | M42: 71 | N42: 18 | O42: 77
A43: 응답인원 | C43: 4 | D43: 8 | E43: 2 | F43: 4 | G43: 2 | H43: 5 | I43: 14 | J43: 6 | K43: 9 | L43: 1 | M43: 12 | N43: 2 | O43: 11
A44: 응답률 | C44: =C43/C42*100 -> 14.28571429 | D44: =D43/D42*100 -> 25.80645161 | E44: 15.38461538 | F44: 26.66666667 | G44: 10.52631579 | H44: 8.620689655 | I44: 16.47058824 | J44: 17.64705882 | K44: 17.64705882 | L44: 5 | M44: 16.90140845 | N44: 11.11111111 | O44: 14.28571429
A45: 1.현재까지 수강한 경험을 통해 각 항목별로 개선되기를 바라는 것을 체크해 주세요.
A46: 1-1) 강의자료 | B46: 1) 더 자세하게 | C46: 0% (0명) | D46: 0% (0명) | E46: 0% (0명) | F46: 25% (1명) | G46: 0% (0명) | H46: 20% (1명) | I46: 14% (2명) | J46: 33% (2명) | K46: 0% (0명) | L46: 0% (0명) | M46: 0% (0명) | N46: 0% (0명) | O46: 0% (0명) | P46: 6
B47: 2) 만족한다 | C47: 100% (4명) | D47: 100% (8명) | E47: 100% (2명) | F47: 75% (3명) | G47: 100% (2명) | H47: 80% (4명) | I47: 86% (12명) | J47: 67% (4명) | K47: 100% (9명) | L47: 100% (1명) | M47: 100% (12명) | N47: 100% (2명) | O47: 100% (11명) | P47: 74
B48: 3) 더 다양하게 | C48: 0% (0명) | D48: 0% (0명) | E48: 0% (0명) | F48: 0% (0명) | G48: 0% (0명) | H48: 0% (0명) | I48: 0% (0명) | J48: 0% (0명) | K48: 0% (0명) | L48: 0% (0명) | M48: 0% (0명) | N48: 0% (0명) | O48: 0% (0명) | P48: 0
A49: 1-2) 강의 동영상 | B49: 1) 더 이해하기 쉽게 | C49: 0% (0명) | D49: 12% (1명) | E49: 0% (0명) | F49: 25% (1명) | G49: 0% (0명) | H49: 20% (1명) | I49: 0% (0명) | J49: 33% (2명) | K49: 0% (0명) | L49: 0% (0명) | M49: 17% (2명) | N49: 0% (0명) | O49: 0% (0명) | P49: 7
B50: 2) 만족한다 | C50: 100% (4명) | D50: 75% (6명) | E50: 100% (2명) | F50: 75% (3명) | G50: 100% (2명) | H50: 60% (3명) | I50: 79% (11명) | J50: 67% (4명) | K50: 100% (9명) | L50: 100% (1명) | M50: 83% (10명) | N50: 100% (2명) | O50: 100% (11명) | P50: 68
B51: 3) 더 짧게 | C51: 0% (0명) | D51: 12% (1명) | E51: 0% (0명) | F51: 0% (0명) | G51: 0% (0명) | H51: 20% (1명) | I51: 21% (3명) | J51: 0% (0명) | K51: 0% (0명) | L51: 0% (0명) | M51: 0% (0명) | N51: 0% (0명) | O51: 0% (0명) | P51: 5
A52: 1-3) 수업 진도 | B52: 1) 너무 느리다 | C52: 0% (0명) | D52: 0% (0명) | E52: 0% (0명) | F52: 25% (1명) | G52: 0% (0명) | H52: 0% (0명) | I52: 0% (0명) | J52: 0% (0명) | K52: 0% (0명) | L52: 0% (0명) | M52: 0% (0명) | N52: 0% (0명) | O52: 0% (0명) | P52: 1
B53: 2) 적절하다 | C53: 100% (4명) | D53: 88% (7명) | E53: 100% (2명) | F53: 75% (3명) | G53: 100% (2명) | H53: 80% (4명) | I53: 79% (11명) | J53: 83% (5명) | K53: 100% (9명) | L53: 100% (1명) | M53: 100% (12명) | N53: 100% (2명) | O53: 100% (11명) | P53: 73
B54: 3) 너무 빠르다 | C54: 0% (0명) | D54: 12% (1명) | E54: 0% (0명) | F54: 0% (0명) | G54: 0% (0명) | H54: 20% (1명) | I54: 21% (3명) | J54: 17% (1명) | K54: 0% (0명) | L54: 0% (0명) | M54: 0% (0명) | N54: 0% (0명) | O54: 0% (0명) | P54: 6
A55: 1-4) 학습량 | B55: 1) 너무 적다 | C55: 0% (0명) | D55: 0% (0명) | E55: 0% (0명) | F55: 0% (0명) | G55: 0% (0명) | H55: 0% (0명) | I55: 0% (0명) | J55: 0% (0명) | K55: 0% (0명) | L55: 0% (0명) | M55: 0% (0명) | N55: 0% (0명) | O55: 0% (0명) | P55: 0
B56: 2) 적절하다 | C56: 100% (4명) | D56: 75% (6명) | E56: 100% (2명) | F56: 50% (2명) | G56: 100% (2명) | H56: 60% (3명) | I56: 71% (10명) | J56: 83% (5명) | K56: 100% (9명) | L56: 0% (0명) | M56: 100% (12명) | N56: 50% (1명) | O56: 91% (10명) | P56: 66
B57: 3) 너무 많다 | C57: 0% (0명) | D57: 25% (2명) | E57: 0% (0명) | F57: 50% (2명) | G57: 0% (0명) | H57: 40% (2명) | I57: 29% (4명) | J57: 17% (1명) | K57: 0% (0명) | L57: 100% (1명) | M57: 0% (0명) | N57: 50% (1명) | O57: 9% (1명) | P57: 14
A58: 1-5) 학습 부담 | B58: 1) 너무 쉽다 | C58: 0% (0명) | D58: 0% (0명) | E58: 0% (0명) | F58: 0% (0명) | G58: 0% (0명) | H58: 0% (0명) | I58: 0% (0명) | J58: 0% (0명) | K58: 0% (0명) | L58: 0% (0명) | M58: 0% (0명) | N58: 0% (0명) | O58: 0% (0명) | P58: 0
B59: 2) 적절하다 | C59: 100% (4명) | D59: 50% (4명) | E59: 100% (2명) | F59: 75% (3명) | G59: 50% (1명) | H59: 100% (5명) | I59: 86% (12명) | J59: 83% (5명) | K59: 100% (9명) | L59: 0% (0명) | M59: 92% (11명) | N59: 100% (2명) | O59: 100% (11명) | P59: 69
B60: 3) 너무 어렵다 | C60: 0% (0명) | D60: 50% (4명) | E60: 0% (0명) | F60: 25% (1명) | G60: 50% (1명) | H60: 0% (0명) | I60: 14% (2명) | J60: 17% (1명) | K60: 0% (0명) | L60: 100% (1명) | M60: 8% (1명) | N60: 0% (0명) | O60: 0% (0명) | P60: 11
A61: 2.당초 기대한 것에 비하여 현재까지 진행된 수업을 종합적으로 판단한 결과는?
A62: 1) 수업 진도에 맞추어 잘 수강하고 있다. | C62: 75% (3명) | D62: 50% (4명) | E62: 100% (2명) | F62: 75% (3명) | G62: 100% (2명) | H62: 100% (5명) | I62: 93% (13명) | J62: 83% (5명) | K62: 100% (9명) | L62: 100% (1명) | M62: 92% (11명) | N62: 50% (1명) | O62: 100% (11명) | P62: 70
A63: 2) 내가 예상한 것과 크게 달랐다. 다른 이유는 무엇인가요? | C63: 0% (0명) | D63: 12% (1명) | E63: 0% (0명) | F63: 25% (1명) | G63: 0% (0명) | H63: 0% (0명) | I63: 7% (1명) | J63: 17% (1명) | K63: 0% (0명) | L63: 0% (0명) | M63: 8% (1명) | N63: 0% (0명) | O63: 0% (0명) | P63: 5
A64: 3) 기대한 것보다 훨씬 만족한다. 만족한 이유는 무엇인가요? | C64: 25% (1명) | D64: 38% (3명) | E64: 0% (0명) | F64: 0% (0명) | G64: 0% (0명) | H64: 0% (0명) | I64: 0% (0명) | J64: 0% (0명) | K64: 0% (0명) | L64: 0% (0명) | M64: 0% (0명) | N64: 50% (1명) | O64: 0% (0명) | P64: 5
A65: 4) 기타 의견(서술형) | C65: 0% (0명) | D65: 0% (0명) | E65: 0% (0명) | F65: 0% (0명) | G65: 0% (0명) | H65: 0% (0명) | I65: 0% (0명) | J65: 0% (0명) | K65: 0% (0명) | L65: 0% (0명) | M65: 0% (0명) | N65: 0% (0명) | O65: 0% (0명) | P65: 0
A66: 3.이 수업의 장점이라고 생각되는 것을 체크해 주세요.
A67: 1) 교수자의 전문성과 풍부한 경험이 실감나는 수업 | C67: 75% (3명) | D67: 75% (6명) | E67: 100% (2명) | F67: 0% (0명) | G67: 50% (1명) | H67: 40% (2명) | I67: 14% (2명) | J67: 17% (1명) | K67: 78% (7명) | L67: 100% (1명) | M67: 42% (5명) | N67: 50% (1명) | O67: 45% (5명) | P67: 36
A68: 2) 수업 내용이 알차고 충실하면서도 현실적이고 유용한 수업 | C68: 25% (1명) | D68: 12% (1명) | E68: 0% (0명) | F68: 75% (3명) | G68: 0% (0명) | H68: 20% (1명) | I68: 57% (8명) | J68: 67% (4명) | K68: 11% (1명) | L68: 0% (0명) | M68: 25% (3명) | N68: 50% (1명) | O68: 18% (2명) | P68: 26
A69: 3) 교수자의 열의가 높고 학생과 함께 교감할 수 있는 수업 | C69: 0% (0명) | D69: 0% (0명) | E69: 0% (0명) | F69: 0% (0명) | G69: 50% (1명) | H69: 0% (0명) | I69: 0% (0명) | J69: 17% (1명) | K69: 11% (1명) | L69: 0% (0명) | M69: 25% (3명) | N69: 0% (0명) | O69: 27% (3명) | P69: 8
A70: 4) 지루하지 않고 집중할 수 있도록 교수자의 수업 운영 기술이 돋보이는 수업 | C70: 0% (0명) | D70: 12% (1명) | E70: 0% (0명) | F70: 0% (0명) | G70: 0% (0명) | H70: 0% (0명) | I70: 7% (1명) | J70: 0% (0명) | K70: 0% (0명) | L70: 0% (0명) | M70: 8% (1명) | N70: 0% (0명) | O70: 0% (0명) | P70: 3
A71: 5) 해당사항 없음 | C71: 0% (0명) | D71: 0% (0명) | E71: 0% (0명) | F71: 25% (1명) | G71: 0% (0명) | H71: 40% (2명) | I71: 21% (3명) | J71: 0% (0명) | K71: 0% (0명) | L71: 0% (0명) | M71: 0% (0명) | N71: 0% (0명) | O71: 9% (1명) | P71: 7
A72: 6) 기타 의견(서술형) | C72: 0% (0명) | D72: 0% (0명) | E72: 0% (0명) | F72: 0% (0명) | G72: 0% (0명) | H72: 0% (0명) | I72: 0% (0명) | J72: 0% (0명) | K72: 0% (0명) | L72: 0% (0명) | M72: 0% (0명) | N72: 0% (0명) | O72: 0% (0명) | P72: 0
A76: 2022-1학기 수업 피드백(중간설문) 결과
A77: 과목명(수강생) 및 문항별 응답율 | G77: 결과(합계)
A78: 전공명 | C78: 컴퓨터통신 | D78: 컴퓨팅사고와이산수학 | E78: 클라우드컴퓨팅 | F78: 응답 인원
A79: 교수명 | C79: 조영종 교수 | D79: 예홍진 교수 | E79: 오상윤 교수
A80: 수강인원 | C80: 62 | D80: 32 | E80: 24 | G80: 대상자 | H80: =SUM($C$5:$O$5,$C$42:$O$42,$C$80:$E$80) -> 1151
A81: 응답인원 | C81: 14 | D81: 4 | E81: 2 | G81: 응답자 | H81: =SUM($C$6:$O$6,$C$43:$O$43,$C$81:$E$81) -> 174
A82: 응답률 | C82: =C81/C80*100 -> 22.58064516 | D82: =D81/D80*100 -> 12.5 | E82: 8.333333333 | G82: 전체 응답률 | H82: =H81/H80*100 -> 15.11728931
A83: 1.현재까지 수강한 경험을 통해 각 항목별로 개선되기를 바라는 것을 체크해 주세요. | G83: 총 응답자(명) | H83: 총 응답률(%)
A84: 1-1) 강의자료 | B84: 1) 더 자세하게 | C84: 36% (5명) | D84: 0% (0명) | E84: 0% (0명) | F84: 5 | G84: =SUM($P$9,$P$46,$K$84) -> 11 | H84: =G84/$H$81*100 -> 6.32183908
B85: 2) 만족한다 | C85: 64% (9명) | D85: 100% (4명) | E85: 100% (2명) | F85: 15 | G85: =SUM($P$10,$P$47,$K$85) -> 141 | H85: =G85/$H$81*100 -> 81.03448276
B86: 3) 더 다양하게 | C86: 0% (0명) | D86: 0% (0명) | E86: 0% (0명) | F86: 0 | G86: =SUM($P$11,$P$48,$K$86) -> 2 | H86: 1.149425287
A87: 1-2) 강의 동영상 | B87: 1) 더 이해하기 쉽게 | C87: 43% (6명) | D87: 0% (0명) | E87: 0% (0명) | F87: 6 | G87: =SUM($P$12,$P$49,$K$87) -> 18 | H87: 10.34482759
B88: 2) 만족한다 | C88: 43% (6명) | D88: 75% (3명) | E88: 100% (2명) | F88: 11 | G88: =SUM($P$13,$P$50,$K$88) -> 129 | H88: 74.13793103
B89: 3) 더 짧게 | C89: 14% (2명) | D89: 25% (1명) | E89: 0% (0명) | F89: 3 | G89: =SUM($P$14,$P$51,$K$89) -> 7 | H89: 4.022988506
A90: 1-3) 수업 진도 | B90: 1) 너무 느리다 | C90: 0% (0명) | D90: 0% (0명) | E90: 0% (0명) | F90: 0 | G90: =SUM($P$15,$P$52,$K$90) -> 1 | H90: 0.5747126437
B91: 2) 적절하다 | C91: 71% (10명) | D91: 75% (3명) | E91: 100% (2명) | F91: 15 | G91: =SUM($P$16,$P$53,$K$91) -> 144 | H91: 82.75862069
B92: 3) 너무 빠르다 | C92: 29% (4명) | D92: 25% (1명) | E92: 0% (0명) | F92: 5 | G92: =SUM($P$17,$P$54,$K$92) -> 9 | H92: 5.172413793
A93: 1-4) 학습량 | B93: 1) 너무 적다 | C93: 0% (0명) | D93: 0% (0명) | E93: 0% (0명) | F93: 0 | G93: =SUM($P$18,$P$55,$K$93) -> 0 | H93: 0
B94: 2) 적절하다 | C94: 57% (8명) | D94: 75% (3명) | E94: 100% (2명) | F94: 13 | G94: =SUM($P$19,$P$56,$K$94) -> 134 | H94: 77.01149425
B95: 3) 너무 많다 | C95: 43% (6명) | D95: 25% (1명) | E95: 0% (0명) | F95: 7 | G95: =SUM($P$20,$P$57,$K$95) -> 20 | H95: 11.49425287
A96: 1-5) 학습 부담 | B96: 1) 너무 쉽다 | C96: 0% (0명) | D96: 0% (0명) | E96: 0% (0명) | F96: 0 | G96: =SUM($P$21,$P$58,$K$96) -> 0 | H96: 0
B97: 2) 적절하다 | C97: 57% (8명) | D97: 75% (3명) | E97: 100% (2명) | F97: 13 | G97: =SUM($P$22,$P$59,$K$97) -> 136 | H97: 78.16091954
B98: 3) 너무 어렵다 | C98: 43% (6명) | D98: 25% (1명) | E98: 0% (0명) | F98: 7 | G98: =SUM($P$23,$P$60,$K$98) -> 18 | H98: 10.34482759
A99: 2.당초 기대한 것에 비하여 현재까지 진행된 수업을 종합적으로 판단한 결과는?
A100: 1) 수업 진도에 맞추어 잘 수강하고 있다. | C100: 64% (9명) | D100: 75% (3명) | E100: 100% (2명) | F100: 14 | G100: =SUM($P$25,$P$62,$K$100) -> 135 | H100: =G100/$H$81*100 -> 77.5862069
A101: 2) 내가 예상한 것과 크게 달랐다. 다른 이유는 무엇인가요? | C101: 29% (4명) | D101: 0% (0명) | E101: 0% (0명) | F101: 4 | G101: =SUM($P$26,$P$63,$K$101) -> 9 | H101: =G101/$H$81*100 -> 5.172413793
A102: 3) 기대한 것보다 훨씬 만족한다. 만족한 이유는 무엇인가요? | C102: 0% (0명) | D102: 25% (1명) | E102: 0% (0명) | F102: 1 | G102: =SUM($P$27,$P$64,$K$102) -> 8 | H102: 4.597701149
A103: 4) 기타 의견(서술형) | C103: 7% (1명) | D103: 0% (0명) | E103: 0% (0명) | F103: 1 | G103: =SUM($P$28,$P$65,$K$103) -> 2 | H103: 1.149425287
A104: 3.이 수업의 장점이라고 생각되는 것을 체크해 주세요.
A105: 1) 교수자의 전문성과 풍부한 경험이 실감나는 수업 | C105: 36% (5명) | D105: 75% (3명) | E105: 0% (0명) | F105: 8 | G105: =SUM($P$30,$P$67,$K$105) -> 68 | H105: =G105/$H$81*100 -> 39.08045977
A106: 2) 수업 내용이 알차고 충실하면서도 현실적이고 유용한 수업 | C106: 14% (2명) | D106: 0% (0명) | E106: 100% (2명) | F106: 4 | G106: =SUM($P$31,$P$68,$K$106) -> 40 | H106: =G106/$H$81*100 -> 22.98850575
A107: 3) 교수자의 열의가 높고 학생과 함께 교감할 수 있는 수업 | C107: 7% (1명) | D107: 25% (1명) | E107: 0% (0명) | F107: 2 | G107: =SUM($P$32,$P$69,$K$107) -> 28 | H107: 16.09195402
A108: 4) 지루하지 않고 집중할 수 있도록 교수자의 수업 운영 기술이 돋보이는 수업 | C108: 7% (1명) | D108: 0% (0명) | E108: 0% (0명) | F108: 1 | G108: =SUM($P$33,$P$70,$K$108) -> 4 | H108: 2.298850575
A109: 5) 해당사항 없음 | C109: 36% (5명) | D109: 0% (0명) | E109: 0% (0명) | F109: 5 | G109: =SUM($P$34,$P$71,$K$109) -> 13 | H109: 7.471264368
A110: 6) 기타 의견(서술형) | C110: 0% (0명) | D110: 0% (0명) | E110: 0% (0명) | F110: 0 | G110: =SUM($P$35,$P$72,$K$110) -> 1 | H110: 0.5747126437
